bitfinex-derivatives/quotes_SOLF0:USTF0_20241107
["timestamp","ask_amount","ask_price","bid_price","bid_amount"]
[1730978312613,6.55000656,187.72,187.65,2.38]
[1730978312913,6.55000656,187.72,187.66,17.6137393]
[1730978313118,6.55000656,187.72,187.67,6.26223389]
[1730978313328,2.6628,187.71,187.68,6.26223389]
[1730978313622,2.6628,187.71,187.67,2.6632]
[1730978313822,2.6628,187.71,187.68,6.26247596]
[1730978314028,2.6628,187.71,187.67,2.6632]
[1730978314319,2.6628,187.71,187.68,6.26249362]
[1730978314525,2.6628,187.71,187.67,2.6632]
[1730978314727,2.6628,187.71,187.68,6.26301013]
[1730978314919,9.21260656,187.72,187.67,2.6632]
[1730978315229,9.21260656,187.72,187.68,6.26301013]
[1730978315414,9.21260656,187.72,187.67,2.6632]
[1730978315620,9.21260656,187.72,187.68,6.26358558]
[1730978315926,2.6628,187.71,187.67,2.6632]
[1730978316128,2.6628,187.71,187.68,6.26325907]
[1730978316423,2.6628,187.71,187.67,2.6632]
[1730978316627,2.6628,187.71,187.68,6.26407648]
[1730978316827,2.6628,187.71,187.67,2.6632]
[1730978317216,2.6628,187.71,187.68,6.26412314]
[1730978317418,2.6628,187.71,187.67,2.6632]
[1730978317623,2.6628,187.71,187.68,6.26450901]
[1730978317823,2.6628,187.71,187.67,2.6632]
[1730978318026,2.6628,187.71,187.68,6.26471503]
[1730978318230,2.6628,187.71,187.67,2.6632]
[1730978318423,2.6628,187.71,187.68,6.26466856]
[1730978318725,2.6628,187.71,187.67,2.6632]
[1730978318926,2.6628,187.71,187.68,6.26425961]
[1730978319127,2.6628,187.71,187.67,2.6632]
[1730978319337,2.6628,187.71,187.68,6.26429709]
[1730978319541,2.6628,187.71,187.67,2.6632]
[1730978319834,2.6628,187.71,187.68,6.26458501]
[1730978320129,2.6628,187.71,187.67,2.6632]
[1730978320322,2.6628,187.71,187.68,6.26444875]
[1730978320518,2.6628,187.71,187.67,2.6632]
[1730978320723,2.6628,187.71,187.68,6.26463612]
[1730978320923,2.6628,187.71,187.67,2.6632]
[1730978321127,2.6628,187.71,187.68,6.26469957]
[1730978321428,2.6628,187.71,187.67,2.6632]
[1730978321623,2.6628,187.71,187.68,6.2646983]
[1730978321830,2.6629,187.7,187.66,2.6634]
[1730978322033,2.6629,187.7,187.67,6.26460263]
[1730978322230,2.6629,187.7,187.68,6.26460263]
[1730978322432,2.6629,187.7,187.66,2.6634]
[1730978322634,9.21290656,187.7,187.67,6.26478938]
[1730978322833,9.21290656,187.7,187.68,6.26478938]
[1730978323030,6.55000656,187.7,187.65,5.0435]
[1730978323235,6.55000656,187.7,187.65,2.38]
[1730978323433,6.55000656,187.7,187.66,6.26565078]
[1730978323929,6.55000656,187.7,187.65,2.38]
[1730978324335,6.55000656,187.68,187.63,8.91000656]
[1730978324936,9.21310656,187.68,187.63,11.57370656]
[1730978325530,9.21310656,187.68,187.63,5.0237]
[1730978325931,9.21310656,187.68,187.64,17.62491125]
[1730978326127,9.21310656,187.68,187.63,5.0237]
[1730978326331,9.21310656,187.68,187.64,1.33202961]
[1730978326532,9.21310656,187.68,187.65,6.26735918]
[1730978326835,9.21310656,187.68,187.66,6.26735918]
[1730978327138,9.21310656,187.68,187.63,5.0237]
[1730978327337,9.21310656,187.68,187.64,17.62574101]
[1730978327534,9.21310656,187.68,187.65,6.26681387]
[1730978327739,9.21310656,187.68,187.63,5.0237]
[1730978328039,9.21310656,187.68,187.64,17.6256599]
[1730978328241,9.21310656,187.68,187.65,6.26678008]
[1730978328435,9.21310656,187.68,187.66,6.26678008]
[1730978328739,9.21310656,187.68,187.63,5.0237]
[1730978328740,9.21310656,187.68,187.63,11.57370656]
[1730978328940,9.21310656,187.68,187.64,17.62255921]
[1730978329239,9.21310656,187.68,187.65,6.26559471]
[1730978329440,9.21310656,187.68,187.66,6.26559471]
[1730978329643,9.21310656,187.68,187.63,11.57370656]
[1730978329940,9.21310656,187.68,187.64,17.61174005]
[1730978330139,9.21310656,187.68,187.65,6.26143286]
[1730978330335,2.6631,187.68,187.66,6.26143286]
[1730978330535,2.663,187.7,187.64,2.6636]
[1730978330739,2.663,187.7,187.65,24.15931848]
[1730978330940,2.663,187.7,187.66,6.26076866]
[1730978331138,2.663,187.7,187.67,6.26076866]
[1730978331436,2.663,187.7,187.65,9.21340656]
[1730978331636,2.663,187.7,187.66,6.25481558]
[1730978331834,2.663,187.7,187.67,6.25481558]
[1730978332042,2.663,187.7,187.65,9.21340656]
[1730978332238,2.663,187.7,187.66,6.25421281]
[1730978332437,2.663,187.7,187.67,6.25421281]
[1730978332643,2.663,187.7,187.65,9.21340656]
[1730978332837,2.663,187.7,187.66,6.25116531]
[1730978333037,2.663,187.7,187.65,9.21340656]
[1730978333038,2.663,187.7,187.65,6.55000656]
[1730978333244,6.55000656,187.71,187.67,6.251128]
[1730978333541,9.21280656,187.71,187.66,2.6633]
[1730978333743,9.21280656,187.71,187.67,6.25065022]
[1730978334040,9.21280656,187.71,187.66,2.6633]
[1730978334337,9.21280656,187.71,187.67,6.25040071]
[1730978334538,9.21280656,187.71,187.66,2.6633]
[1730978334743,6.55000656,187.71,187.67,6.25064347]
[1730978334945,2.663,187.7,187.66,2.6633]
[1730978335141,6.55000656,187.69,187.66,2.6633]
[1730978335343,6.55000656,187.69,187.64,6.55000656]
[1730978335648,6.55000656,187.69,187.63,2.36]
[1730978335649,9.21310656,187.69,187.65,6.25124849]
[1730978335839,9.21310656,187.69,187.66,6.25124849]
[1730978336035,9.21310656,187.69,187.64,2.6636]
[1730978336235,1.2735,187.74,187.65,6.25204833]
[1730978336440,9.21290656,187.7,187.65,2.6635]
[1730978336647,9.21290656,187.7,187.66,6.25229282]
[1730978336842,9.21290656,187.7,187.65,2.6635]
[1730978337044,9.21290656,187.7,187.66,6.25308035]
[1730978337239,9.21290656,187.7,187.67,6.25305107]
[1730978337443,9.21290656,187.7,187.65,2.6635]
[1730978337645,9.21290656,187.7,187.66,6.25311976]
[1730978337843,9.21290656,187.7,187.67,6.25311976]
[1730978338041,9.21290656,187.7,187.65,2.6635]
[1730978338241,9.21290656,187.7,187.66,6.25353047]
[1730978338441,9.21290656,187.7,187.67,6.25353047]
[1730978338643,6.55000656,187.7,187.63,2.36]
[1730978338843,2.6632,187.68,187.64,17.59134908]
[1730978339048,2.6632,187.68,187.65,17.59134908]
[1730978339249,2.6632,187.68,187.66,6.25359711]
[1730978339445,2.6632,187.68,187.67,6.25359711]
[1730978341253,9.21320656,187.68,187.67,6.25359711]
[1730978341951,9.21320656,187.68,187.64,2.6637]
[1730978342151,9.21320656,187.68,187.65,17.59446168]
[1730978342353,9.21320656,187.68,187.64,2.6637]
[1730978342652,9.21320656,187.68,187.65,17.59422897]
[1730978342948,9.21320656,187.68,187.66,6.25474005]
[1730978343149,9.21320656,187.68,187.67,6.25474005]
[1730978343743,6.55000656,187.68,187.67,6.25474005]
[1730978344351,9.21300656,187.69,187.67,6.25474005]
[1730978344558,9.21300656,187.69,187.64,9.21370656]
[1730978344852,9.21300656,187.69,187.65,17.59678351]
[1730978345058,9.21300656,187.69,187.66,6.25568724]
[1730978345258,2.6627,187.71,187.67,6.25568724]
[1730978345447,9.21270656,187.71,187.66,2.6634]
[1730978345645,2.6625,187.73,187.68,2.6631]
[1730978346157,6.55000656,187.73,187.68,2.6631]
[1730978346656,2.6627,187.72,187.68,2.6631]
[1730978348762,6.55000656,187.71,187.68,2.6631]
[1730978351660,6.55000656,187.71,187.67,2.6632]
[1730978351866,6.55000656,187.71,187.68,6.25301805]
[1730978352055,6.55000656,187.71,187.67,2.6632]
[1730978352256,6.55000656,187.71,187.68,6.25367379]
[1730978352459,6.55000656,187.71,187.67,2.6632]
[1730978352864,9.21270656,187.71,187.68,6.25305994]
[1730978353064,9.21270656,187.71,187.67,2.6632]
[1730978353258,9.21270656,187.71,187.68,6.25417464]
[1730978353465,9.21270656,187.71,187.67,2.6632]
[1730978353668,9.21270656,187.71,187.68,6.25417538]
[1730978353873,9.21270656,187.71,187.67,2.6632]
[1730978354162,9.21270656,187.71,187.68,6.25396645]
[1730978354355,9.21270656,187.71,187.67,2.6632]
[1730978354663,9.21270656,187.71,187.68,6.25488817]
[1730978354866,9.21270656,187.71,187.67,2.6632]
[1730978355062,9.21270656,187.71,187.68,6.25483771]
[1730978355264,9.21270656,187.71,187.67,2.6632]
[1730978355559,9.21270656,187.71,187.68,6.25666018]
[1730978355764,9.21270656,187.71,187.67,2.6632]
[1730978356067,9.21270656,187.71,187.68,6.25657518]
[1730978356366,9.21270656,187.71,187.67,2.6632]
[1730978356561,9.21270656,187.71,187.68,6.25765147]
[1730978356756,9.21270656,187.71,187.67,2.6632]
[1730978356967,9.21270656,187.71,187.68,6.25742908]
[1730978357167,9.21270656,187.71,187.67,2.6632]
[1730978357364,9.21270656,187.71,187.68,6.25869842]
[1730978357569,9.21270656,187.71,187.67,2.6632]
[1730978357866,9.21270656,187.71,187.68,6.25874317]
[1730978358067,9.21270656,187.71,187.67,2.6632]
[1730978358272,9.21270656,187.71,187.68,6.25948207]
[1730978358468,9.21270656,187.71,187.67,2.6632]
[1730978358667,9.21270656,187.71,187.68,6.25946663]
[1730978358863,9.21270656,187.71,187.67,2.6632]
[1730978359168,9.21270656,187.71,187.68,6.25944544]
[1730978359369,9.21270656,187.71,187.67,2.6632]
[1730978359665,9.21270656,187.71,187.68,6.25988394]
[1730978359866,9.21270656,187.71,187.69,6.25988394]
[1730978360058,9.21270656,187.71,187.67,2.6632]
[1730978360264,9.21270656,187.71,187.68,6.26037909]
[1730978360462,9.21270656,187.71,187.69,6.26037909]
[1730978360662,2.6627,187.71,187.67,2.6632]
[1730978360863,9.21270656,187.71,187.68,6.26023537]
[1730978361062,9.21270656,187.71,187.69,6.26023537]
[1730978361264,9.21270656,187.71,187.67,2.6632]
[1730978361462,9.21270656,187.71,187.68,6.25978568]
[1730978361679,9.21270656,187.71,187.69,6.25978568]
[1730978361863,9.21270656,187.71,187.67,2.6632]
[1730978362174,9.21270656,187.71,187.68,6.25906451]
[1730978362474,9.21270656,187.71,187.69,6.25906451]
[1730978362674,9.21270656,187.71,187.67,2.6632]
[1730978362979,9.21270656,187.71,187.68,6.25884689]
[1730978363270,9.21270656,187.71,187.69,6.2589949]
[1730978363473,9.21270656,187.71,187.67,2.6632]
[1730978363672,9.21270656,187.71,187.68,6.25936145]
[1730978363976,9.21270656,187.71,187.69,6.25936145]
[1730978364160,9.21270656,187.71,187.67,2.6632]
[1730978364362,9.21270656,187.71,187.68,6.25926958]
[1730978364566,9.21270656,187.71,187.69,6.25926958]
[1730978364773,9.21270656,187.71,187.67,2.6632]
[1730978364968,9.21270656,187.71,187.68,6.25932756]
[1730978365174,9.21270656,187.71,187.69,6.25932756]
[1730978365374,9.21270656,187.71,187.67,2.6632]
[1730978365576,9.21270656,187.71,187.68,6.25912006]
[1730978365775,9.21270656,187.71,187.69,6.25912006]
[1730978365979,9.21270656,187.71,187.67,2.6632]
[1730978365980,9.21270656,187.71,187.7,7.59110738]
[1730978366877,9.21270656,187.71,187.67,2.6632]
[1730978367070,9.21270656,187.71,187.68,7.58368754]
[1730978367273,9.21270656,187.71,187.69,7.58368754]
[1730978367473,9.21270656,187.71,187.7,7.58368754]
[1730978369275,9.21270656,187.71,187.68,2.6631]
[1730978370379,9.21270656,187.71,187.69,6.25351182]
[1730978370578,9.21270656,187.71,187.7,7.58549417]
[1730978370774,9.21270656,187.71,187.67,2.6632]
[1730978371078,9.21270656,187.71,187.68,7.57557433]
[1730978371273,9.21270656,187.71,187.69,7.57557433]
[1730978371475,9.21270656,187.71,187.7,7.57557433]
[1730978372084,3.9359,187.74,187.7,7.57557433]
[1730978372280,2.38,187.8,187.71,7.57557433]
[1730978372473,5.3218,187.84,187.72,7.57557433]
[1730978372474,6.55000656,187.77,187.72,7.57557433]
[1730978372781,2.38,187.81,187.73,14.11981559]
[1730978372988,2.5574,187.82,187.74,7.56980903]
[1730978373179,6.55000656,187.8,187.75,14.11981559]
[1730978373479,6.55000656,187.8,187.76,7.56980903]
[1730978373687,3.9089,187.83,187.78,2.6616]
[1730978373872,6.55000656,187.82,187.79,7.56980903]
[1730978374178,6.55000656,187.84,187.8,6.23788439]
[1730978374372,4.8719,187.87,187.78,8.91000656]
[1730978374573,4.8719,187.87,187.8,6.55000656]
[1730978374878,6.55000656,187.87,187.83,2.661]
[1730978376079,6.55000656,187.87,187.82,6.55000656]
[1730978376284,9.21050656,187.87,187.82,9.21100656]
[1730978377178,6.55000656,187.85,187.8,9.21130656]
[1730978377377,6.55000656,187.85,187.8,6.55000656]
[1730978377583,6.55000656,187.85,187.81,6.20876048]
[1730978377885,6.55000656,187.85,187.81,2.6613]
[1730978378483,6.55000656,187.87,187.81,2.6613]
[1730978378677,1.2661,187.92,187.82,8.91000656]
[1730978378884,6.55000656,187.88,187.82,11.57110656]
[1730978379880,9.21030656,187.88,187.82,5.0211]
[1730978380188,9.21030656,187.88,187.82,11.57110656]
[1730978380387,6.55000656,187.86,187.82,8.91000656]
[1730978380590,6.55000656,187.86,187.82,2.36]
[1730978380887,6.55000656,187.86,187.81,5.0213]
[1730978381783,9.21060656,187.86,187.81,5.0213]
[1730978382689,9.21060656,187.86,187.81,11.57130656]
[1730978383183,6.55000656,187.86,187.81,11.57130656]
[1730978383589,2.6605,187.87,187.83,6.55000656]
[1730978384685,3.6261,187.92,187.83,6.55000656]
[1730978384879,1.2661,187.92,187.81,2.36]
[1730978385080,7.81610656,187.92,187.86,6.55000656]
[1730978385287,2.66,187.9,187.86,6.55000656]
[1730978385886,2.6594,187.95,187.88,9.21020656]
[1730978386091,2.6594,187.95,187.91,6.55000656]
[1730978386988,6.55000656,187.97,187.91,6.55000656]
[1730978387396,2.6595,187.94,187.91,6.55000656]
[1730978388288,2.6595,187.94,187.89,2.36]
[1730978388488,2.6595,187.94,187.9,6.55000656]
[1730978390291,2.6595,187.94,187.89,5.0201]
[1730978390491,2.6595,187.94,187.9,6.55000656]
[1730978392195,6.55000656,187.96,187.9,6.55000656]
[1730978393189,2.6596,187.94,187.9,6.55000656]
[1730978393793,2.6593,187.95,187.9,6.55000656]
[1730978394190,6.55000656,187.97,187.9,6.55000656]
[1730978394387,2.6595,187.94,187.9,6.55000656]
[1730978395804,6.55000656,187.96,187.9,6.55000656]
[1730978395805,2.6593,187.96,187.91,2.6598]
[1730978396603,2.6593,187.96,187.9,6.55000656]
[1730978396604,2.6595,187.94,187.9,8.91000656]
[1730978398798,2.6597,187.93,187.9,2.36]
[1730978398994,2.6597,187.93,187.91,6.55000656]
[1730978401994,2.6597,187.93,187.87,2.36]
[1730978401995,6.55000656,187.93,187.87,2.36]
[1730978402205,6.55000656,187.93,187.87,8.91000656]
[1730978402599,2.66,187.91,187.87,6.55000656]
[1730978403296,2.6601,187.9,187.87,6.55000656]
[1730978406006,2.6601,187.9,187.89,6.55000656]
[1730978407508,6.55000656,187.93,187.86,2.38]
[1730978407807,6.55000656,187.91,187.86,6.55000656]
[1730978408497,2.6603,187.89,187.86,6.55000656]
[1730978410103,6.55000656,187.91,187.86,6.55000656]
[1730978410298,2.6603,187.88,187.86,6.55000656]
[1730978410694,6.55000656,187.89,187.84,6.55000656]
[1730978411807,2.6606,187.86,187.84,6.55000656]
[1730978412502,2.6606,187.86,187.81,3.6806]
[1730978412503,6.55000656,187.89,187.81,2.38]
[1730978412809,4.8857,187.93,187.81,2.38]
[1730978412810,6.55000656,187.87,187.81,2.38]
[1730978413002,6.55000656,187.87,187.82,6.55000656]
[1730978413199,2.661,187.84,187.82,6.55000656]
[1730978413393,6.55000656,187.87,187.82,6.55000656]
[1730978413601,4.8857,187.93,187.83,6.55000656]
[1730978413900,6.55000656,187.9,187.83,6.55000656]
[1730978414103,6.55000656,187.9,187.85,6.55000656]
[1730978414495,2.6605,187.87,187.85,6.55000656]
[1730978417796,2.6605,187.87,187.84,6.55000656]
[1730978418201,6.55000656,187.89,187.81,2.38]
[1730978418401,2.6607,187.86,187.82,6.55000656]
[1730978419009,2.6608,187.85,187.82,6.55000656]
[1730978426118,2.6606,187.86,187.82,6.55000656]
[1730978429712,2.6606,187.86,187.83,6.55000656]
[1730978430017,6.55000656,187.92,187.85,6.55000656]
[1730978430412,2.6602,187.89,187.85,6.55000656]
[1730978435822,6.55000656,187.92,187.85,6.55000656]
[1730978436021,2.6603,187.88,187.85,6.55000656]
[1730978437016,6.55000656,187.92,187.85,6.55000656]
[1730978437619,2.6601,187.9,187.85,9.21070656]
[1730978438327,2.6601,187.9,187.86,2.6604]
[1730978439120,6.55000656,187.92,187.86,2.6604]
[1730978439422,2.6602,187.89,187.86,2.6604]
[1730978443020,43.14795479,188.0,187.88,6.55000656]
[1730978443224,2.38,187.99,187.88,6.55000656]
[1730978443422,9.20940656,187.95,187.9,2.6599]
[1730978443622,6.55000656,187.95,187.9,2.6599]
[1730978444321,2.6596,187.93,187.9,2.6599]
[1730978444523,2.6596,187.93,187.89,5.0401]
[1730978445117,2.6596,187.93,187.89,2.38]
[1730978446919,2.6596,187.93,187.88,9.21020656]
[1730978447126,2.6596,187.93,187.88,11.59020656]
[1730978447823,9.20960656,187.93,187.89,6.22246416]
[1730978448025,9.20960656,187.93,187.88,11.59020656]
[1730978449519,9.20960656,187.93,187.89,6.22258271]
[1730978450120,9.20960656,187.93,187.88,11.59020656]
[1730978456234,2.6596,187.93,187.88,11.59020656]
[1730978456727,2.6596,187.93,187.88,5.0402]
[1730978456929,2.6596,187.93,187.89,6.55000656]
[1730978458834,2.6594,187.95,187.89,9.21010656]
[1730978459135,2.6594,187.95,187.89,6.55000656]
[1730978460031,2.6594,187.95,187.9,2.66]
[1730978460734,2.6595,187.94,187.9,2.66]
[1730978462027,2.6595,187.94,187.89,9.21010656]
[1730978462229,6.55000656,187.96,187.89,9.21010656]
[1730978462434,6.55000656,187.94,187.88,8.93000656]
[1730978462826,2.6597,187.92,187.88,8.93000656]
[1730978463130,2.6597,187.92,187.88,2.38]
[1730978463632,2.6597,187.92,187.88,5.0403]
[1730978469331,6.55000656,187.92,187.88,2.38]
[1730978469532,6.55000656,187.92,187.86,2.4]
[1730978469731,6.55000656,187.92,187.87,6.21622924]
[1730978469931,6.55000656,187.9,187.84,2.4]
[1730978470133,6.55000656,187.9,187.85,7.54724082]
[1730978470334,2.6603,187.88,187.86,7.54724082]
[1730978470529,2.6603,187.88,187.84,2.4]
[1730978470736,2.6603,187.88,187.85,7.54796145]
[1730978470935,2.6603,187.88,187.86,7.54796145]
[1730978471135,2.6603,187.88,187.84,2.4]
[1730978471335,2.6603,187.88,187.85,7.54788247]
[1730978471637,2.6603,187.88,187.84,2.4]
[1730978471638,2.6603,187.88,187.86,7.54788247]
[1730978471839,2.6603,187.88,187.85,6.55000656]
[1730978472137,2.6603,187.88,187.86,7.54785491]
[1730978472336,2.6603,187.88,187.85,6.55000656]
[1730978472535,2.6603,187.88,187.86,7.54842131]
[1730978472735,2.6603,187.88,187.85,6.55000656]
[1730978472931,2.6603,187.88,187.86,7.54846314]
[1730978473230,2.6603,187.88,187.85,6.55000656]
[1730978473426,2.6603,187.88,187.86,7.54868209]
[1730978473632,2.6603,187.88,187.85,6.55000656]
[1730978476336,2.6603,187.88,187.86,1.33081214]
[1730978476540,2.6603,187.88,187.85,6.55000656]
[1730978476735,2.6603,187.88,187.86,7.55055636]
[1730978476940,2.6603,187.88,187.85,6.55000656]
[1730978477139,2.6603,187.88,187.86,7.55055633]
[1730978477342,2.6603,187.88,187.85,6.55000656]
[1730978477638,2.6603,187.88,187.86,6.21991945]
[1730978477842,2.6603,187.88,187.85,6.55000656]
[1730978478136,2.6603,187.88,187.86,6.22008116]
[1730978478333,2.6603,187.88,187.85,6.55000656]
[1730978478528,6.55000656,187.9,187.86,7.55250803]
[1730978478735,2.6604,187.87,187.84,2.4]
[1730978479040,2.6604,187.87,187.85,7.55317684]
[1730978479239,2.6604,187.87,187.86,7.55317684]
[1730978479435,2.6604,187.87,187.83,8.95000656]
[1730978479636,2.6604,187.87,187.84,7.55350845]
[1730978479841,2.6604,187.87,187.85,6.22264987]
[1730978480043,2.6604,187.87,187.83,8.95000656]
[1730978480246,2.6604,187.87,187.84,7.55422613]
[1730978480449,2.6604,187.87,187.85,6.22336734]
[1730978480744,2.6603,187.88,187.85,6.55000656]
[1730978481047,2.6603,187.88,187.86,6.22399941]
[1730978481241,2.6603,187.88,187.85,6.55000656]
[1730978481542,2.6603,187.88,187.86,6.22410597]
[1730978481843,2.6603,187.88,187.85,6.55000656]
[1730978482031,3.8086,187.94,187.86,6.22531156]
[1730978482234,3.8086,187.94,187.85,6.55000656]
[1730978482235,6.55000656,187.9,187.85,6.55000656]
[1730978482528,6.55000656,187.9,187.86,6.22565875]
[1730978482742,2.6603,187.88,187.85,6.55000656]
[1730978482942,2.6603,187.88,187.86,6.22713569]
[1730978483145,2.6603,187.88,187.85,6.55000656]
[1730978483338,2.6603,187.88,187.86,6.22755073]
[1730978483538,2.6603,187.88,187.85,6.55000656]
[1730978485142,2.6605,187.87,187.83,5.0609]
[1730978485443,2.6605,187.87,187.84,7.55963298]
[1730978485643,2.6605,187.87,187.85,6.22878019]
[1730978485837,6.55000656,187.89,187.83,11.61090656]
[1730978486038,2.6603,187.88,187.84,7.5597291]
[1730978486238,2.6603,187.88,187.85,6.2288694]
[1730978486435,2.6603,187.88,187.84,2.6609]
[1730978486639,2.6603,187.88,187.85,6.22896692]
[1730978486840,2.6603,187.88,187.84,2.6609]
[1730978487041,2.6603,187.88,187.85,6.22900053]
[1730978487243,2.6603,187.88,187.84,2.6609]
[1730978487546,2.6603,187.88,187.85,6.22921328]
[1730978487746,2.6603,187.88,187.86,6.22921328]
[1730978487949,2.6603,187.88,187.84,2.6609]
[1730978488149,2.6603,187.88,187.85,6.22970299]
[1730978488349,2.6603,187.88,187.86,6.22970299]
[1730978488550,2.6603,187.88,187.84,2.6609]
[1730978488751,2.6603,187.88,187.85,6.23017639]
[1730978489050,2.6603,187.88,187.86,6.23017639]
[1730978489351,2.6603,187.88,187.84,2.6609]
[1730978489553,2.6603,187.88,187.85,7.56266293]
[1730978489850,2.6603,187.88,187.86,6.2318056]
[1730978490051,2.6603,187.88,187.84,2.6609]
[1730978490246,2.6603,187.88,187.85,7.56257852]
[1730978490447,2.6603,187.88,187.86,6.23172119]
[1730978490649,2.6603,187.88,187.84,2.6609]
[1730978490855,2.6603,187.88,187.85,7.56301778]
[1730978491256,2.6603,187.88,187.86,6.23216045]
[1730978491657,2.6603,187.88,187.84,2.6609]
[1730978491862,2.6603,187.88,187.85,7.5628029]
[1730978492059,2.6603,187.88,187.86,6.23199929]
[1730978492258,2.6603,187.88,187.84,2.6609]
[1730978492461,3.8086,187.94,187.83,8.95000656]
[1730978492462,2.6597,187.92,187.87,9.21040656]
[1730978492656,2.6597,187.92,187.89,6.55000656]
[1730978493568,2.6597,187.92,187.9,6.2302381]
[1730978493766,2.6597,187.92,187.89,6.55000656]
[1730978493965,2.6597,187.92,187.9,6.23022072]
[1730978494163,2.6597,187.92,187.89,6.55000656]
[1730978494363,2.6597,187.92,187.9,6.23472631]
[1730978494568,2.6597,187.92,187.89,6.55000656]
[1730978494768,2.6597,187.92,187.9,6.2347316]
[1730978494969,2.6597,187.92,187.89,6.55000656]
[1730978495271,2.6597,187.92,187.9,6.23461664]
[1730978495568,2.6597,187.92,187.89,6.55000656]
[1730978495769,2.6597,187.92,187.9,6.23433809]
[1730978495971,2.6599,187.91,187.88,2.4]
[1730978496265,6.55000656,187.92,187.82,1.2082]
[1730978496468,6.55000656,187.92,187.85,6.55000656]
[1730978496771,2.6603,187.89,187.86,7.56700189]
[1730978496968,2.6603,187.89,187.87,6.23628991]
[1730978497162,2.6603,187.89,187.85,6.55000656]
[1730978497367,2.6603,187.89,187.86,7.56767393]
[1730978497569,2.6603,187.89,187.87,6.2369452]
[1730978497761,2.6603,187.88,187.85,6.55000656]
[1730978497966,2.6603,187.88,187.86,6.23832965]
[1730978498166,2.6603,187.88,187.85,6.55000656]
[1730978498568,2.6603,187.88,187.86,6.23858672]
[1730978498770,2.6603,187.88,187.85,6.55000656]
[1730978500975,2.6603,187.88,187.86,6.23988786]
[1730978501175,2.6603,187.88,187.85,6.55000656]
[1730978501361,2.6603,187.88,187.86,6.23990317]
[1730978501565,2.6603,187.88,187.84,9.21080656]
[1730978501767,2.6603,187.88,187.85,6.23978211]
[1730978501963,2.6603,187.88,187.84,9.21080656]
[1730978502168,2.6603,187.88,187.86,6.23978062]
[1730978502472,6.55000656,187.9,187.84,9.21080656]
[1730978502665,6.55000656,187.9,187.85,7.57089655]
[1730978502871,6.55000656,187.9,187.86,6.24004219]
[1730978503070,2.6603,187.88,187.84,9.21080656]
[1730978503268,2.6603,187.88,187.85,7.57083717]
[1730978503468,2.6603,187.88,187.86,6.23998846]
[1730978503669,2.6603,187.88,187.84,9.21080656]
[1730978503871,2.6603,187.88,187.85,7.57108364]
[1730978504072,2.6603,187.88,187.86,6.24023493]
[1730978504273,2.6603,187.88,187.84,9.21080656]
[1730978504466,2.6603,187.88,187.85,7.57081859]
[1730978504674,2.6603,187.88,187.86,6.23996409]
[1730978504873,2.6603,187.88,187.84,9.21080656]
[1730978505075,2.6603,187.88,187.85,7.56881804]
[1730978505280,2.6603,187.88,187.86,6.2379654]
[1730978505581,2.6603,187.88,187.84,9.21080656]
[1730978505768,2.6603,187.88,187.85,7.56860298]
[1730978505974,2.6603,187.88,187.86,6.23774951]
[1730978506173,2.6603,187.88,187.84,9.21080656]
[1730978506378,2.6603,187.88,187.85,6.23781609]
[1730978506577,2.6603,187.88,187.86,6.23781609]
[1730978506778,2.6603,187.88,187.84,9.21080656]
[1730978507080,2.6603,187.88,187.85,6.23800757]
[1730978507279,2.6603,187.88,187.86,6.23792276]
[1730978507480,2.6603,187.88,187.84,9.21080656]
[1730978507781,2.6603,187.88,187.85,6.23805949]
[1730978508076,2.6603,187.88,187.86,6.23805949]
[1730978508279,2.6603,187.88,187.84,9.21080656]
[1730978508475,2.6603,187.88,187.85,6.23806082]
[1730978508779,2.6603,187.88,187.86,6.23806082]
[1730978508982,2.6603,187.88,187.84,9.21080656]
[1730978509293,2.6603,187.88,187.85,6.23806066]
[1730978509583,2.6603,187.88,187.86,6.23806066]
[1730978509880,2.6603,187.88,187.84,9.21080656]
[1730978510077,2.6603,187.88,187.85,6.23766871]
[1730978510272,2.6603,187.88,187.86,6.23766871]
[1730978510472,2.6603,187.88,187.84,9.21080656]
[1730978510668,2.6603,187.88,187.85,6.23772086]
[1730978510881,2.6603,187.88,187.86,6.23772086]
[1730978511080,2.6603,187.88,187.84,9.21080656]
[1730978511281,2.6603,187.88,187.85,6.23769412]
[1730978511473,2.6603,187.88,187.86,6.23769412]
[1730978511675,2.6603,187.88,187.84,9.21080656]
[1730978511979,2.6603,187.88,187.85,7.56870766]